Workbook

Sheet ورقة1
A1: رقم مسلسل | B1: اسم الموظف او المستخدم | E1: وظيفته | F1: نوع العهده | G1: المرتب | H1: القيمه | J1: قيمه العهده المشموله | L1: قيمه رسم الضمان | U1: شرائح ارباب العهد | V1: معادله الاساسى
H2: التقديريه للعهده | J2: بالضمان حد اقصى
J3: مائه الف جنيه | L3: المتحصل من | M3: المتحصل من | N3: ما تتحمله الحكومه | O3: الجمله
G4: الاساسى | H4: نقود او اوراق دمغه | I4: ادوات او مهمات | J4: نقود او اوراق | K4: ادوات
J5: دمغه 100 % | K5: او مهمات 100% | L5: الموظف | M5: الموظف
A6: 1 | E6: كات اول | F6: اثاث | G6: 471.28 | H6: 650 | J6: =IF(H6>=100000,100000,IF(H6<100000,H6)) -> 650 | L6: =IF(M6<1,CEILING(M6,1),IF(M6>1,M6)) -> 1 | M6: =IF((U6-V6<=0),U6,IF((U6-V6>=0),V6)) -> 0.39 | N6: =U6-M6 -> 0 | O6: =SUM(L6+N6) -> 1 | U6: =IF(J6<=10000,J6*6/10000,IF(J6<=40000,6+(J6-10000)*12/10000,IF(J6<=100000,54+(J6-50000)*24/10000))) -> 0.39 | V6: =G6*12*5/1000 -> 28.2768
A7: 2 | E7: رئيس مكتب | F7: اثاث + كمبيوتر ومشتمالته | G7: 495.83 | H7: 100000 | J7: =IF(H7>=100000,100000,IF(H7<100000,H7)) -> 100000 | L7: =IF(M7<1,CEILING(M7,1),IF(M7>1,M7)) -> 29.7498 | M7: =IF((U7-V7<=0),U7,IF((U7-V7>=0),V7)) -> 29.7498 | N7: =U7-M7 -> 144.2502 | O7: =SUM(L7+N7) -> 174 | U7: =IF(J7<=10000,J7*6/10000,IF(J7<=40000,6+(J7-10000)*12/10000,IF(J7<=100000,54+(J7-50000)*24/10000))) -> 174 | V7: =G7*12*5/1000 -> 29.7498
A8: 3 | E8: باحث ثانى | F8: اثاث | G8: 291.31 | H8: 450 | J8: 450 | L8: 1 | M8: 0.27 | N8: 0 | O8: 1 | U8: 0.27 | V8: 17.4786
A9: 4 | E9: باحث اول | F9: اثاث + كمبيوتر ومشتمالته | G9: 356.96 | H9: 100000 | J9: 100000 | L9: 21.4176 | M9: 21.4176 | N9: 152.5824 | O9: 174 | U9: 174 | V9: 21.4176
A10: 5 | E10: رئيس مكتب | F10: اثاث + كمبيوتر ومشتمالته | G10: 504.01 | H10: 100000 | J10: 100000 | L10: 30.2406 | M10: 30.2406 | N10: 143.7594 | O10: 174 | U10: 174 | V10: 30.2406
A11: 6 | E11: باحث اول | F11: اثاث | G11: 356.96 | H11: 500 | J11: 500 | L11: 1 | M11: 0.3 | N11: 0 | O11: 1 | U11: 0.3 | V11: 21.4176
A12: 7 | E12: رئيس مكتب | F12: اثاث | G12: 403.96 | H12: 1200 | J12: 1200 | L12: 1 | M12: 0.72 | N12: 0 | O12: 1 | U12: 0.72 | V12: 24.2376
A13: 8 | E13: رئيس مكتب | F13: اثاث | G13: 250 | H13: 600 | J13: 600 | L13: 1 | M13: 0.36 | N13: 0 | O13: 1 | U13: 0.36 | V13: 15
A14: 9 | E14: رئيس مكتب | F14: اثاث | G14: 357.36 | H14: 900 | J14: 900 | L14: 1 | M14: 0.54 | N14: 0 | O14: 1 | U14: 0.54 | V14: 21.4416
A15: 10 | E15: رئيس مكتب | F15: اثاث | G15: 361.36 | H15: 500 | J15: 500 | L15: 1 | M15: 0.3 | N15: 0 | O15: 1 | U15: 0.3 | V15: 21.6816
A16: 11 | E16: رئيس مكتب | F16: اثاث | G16: 403.36 | H16: 700 | J16: 700 | L16: 1 | M16: 0.42 | N16: 0 | O16: 1 | U16: 0.42 | V16: 24.2016
A17: 12 | E17: رئيس مكتب | F17: اثاث + كمبيوتر ومشتمالته | G17: 531.48 | H17: 100000 | J17: 100000 | L17: 31.8888 | M17: 31.8888 | N17: 142.1112 | O17: 174 | U17: 174 | V17: 31.8888
A18: 13 | E18: كاتب اول | F18: اثاث | G18: 468.08 | H18: 650 | J18: 650 | L18: 1 | M18: 0.39 | N18: 0 | O18: 1 | U18: 0.39 | V18: 28.0848
A19: 14 | E19: كاتب | F19: اثاث | G19: 476.01 | H19: 2630 | J19: 2630 | L19: 1.578 | M19: 1.578 | N19: 0 | O19: 1.578 | U19: 1.578 | V19: 28.5606
A20: 15 | E20: كاتب اول | F20: اثاث | G20: 525.76 | H20: 10000 | J20: 10000 | L20: 6 | M20: 6 | N20: 0 | O20: 6 | U20: 6 | V20: 31.5456
A21: 16 | E21: رئيس مكتب | F21: اثاث | G21: 403.36 | H21: 3000 | J21: 3000 | L21: 1.8 | M21: 1.8 | N21: 0 | O21: 1.8 | U21: 1.8 | V21: 24.2016
B22: الاجمالى | J22: =ROUNDDOWN(SUM(J6:K21),2) -> 421780 | L22: =SUM(L6:L21) -> 131.6748 | M22: =SUM(M6:M21) -> 126.3648 | N22: 582.7032 | O22: 714.378 | U22: FALSE | V22: 0
M23: مديراداره الموارد البشريه | U23: 0 | V23: 0
U24: 0 | V24: 0
U25: 0 | V25: 0
U26: 0 | V26: 0
H27: اقرار | U27: 0 | V27: 0
A28: جمله رسوم الضمان الوارده فى هذا البيان وتبلغ | H28: =O22 -> 714.378 | I28: جنيها | J28: =kh_TextNum(H28,,"جنيه",,"قرشا") -> فقط سبعمائة وأربعة عشر جنيهاً و (38) قرشا | U28: FALSE | V28: 0
A29: سددت لصندوق التامين الحكومى لضمانات ارباب العهد عن المده من يوليو2022 الى يونيه 2023 | U29: 0 | V29: 0
U30: 0 | V30: 0
A31: تحريرا فى : سنه 2022 | U31: 0 | V31: 0
K32: مدير الحسابات | U32: 0 | V32: 0
U33: 0 | V33: 0
N34: يعتمد | U34: 0 | V34: 0
N35: مدير المديريه | U35: 0 | V35: 0
U36: 0 | V36: 0
U37: 0 | V37: 0
U38: 0 | V38: 0
U39: 0 | V39: 0
U40: =IF(J40<=10000,J40*6/10000,IF(J40<=40000,6+(J40-10000)*12/10000,IF(J40<=100000,54+(J40-50000)*24/10000))) -> 0 | V40: =G40*12*5/1000 -> 0
U41: 0 | V41: 0
U42: =IF(J42<=10000,J42*6/10000,IF(J42<=40000,6+(J42-10000)*12/10000,IF(J42<=100000,54+(J42-50000)*24/10000))) -> 0 | V42: =G42*12*5/1000 -> 0
U43: =IF(J43<=10000,J43*6/10000,IF(J43<=40000,6+(J43-10000)*12/10000,IF(J43<=100000,54+(J43-50000)*24/10000))) -> 0 | V43: =G43*12*5/1000 -> 0
U44: =IF(J44<=10000,J44*6/10000,IF(J44<=40000,6+(J44-10000)*12/10000,IF(J44<=100000,54+(J44-50000)*24/10000))) -> 0 | V44: =G44*12*5/1000 -> 0
U45: =IF(J45<=10000,J45*6/10000,IF(J45<=40000,6+(J45-10000)*12/10000,IF(J45<=100000,54+(J45-50000)*24/10000))) -> 0 | V45: =G45*12*5/1000 -> 0
U46: 0 | V46: 0
U47: 0 | V47: 0
U49: =IF(J49<=10000,J49*6/10000,IF(J49<=40000,6+(J49-10000)*12/10000,IF(J49<=100000,54+(J49-50000)*24/10000))) -> 0 | V49: =G49*12*5/1000 -> 0
U51: 0 | V51: 0
U52: =IF(J52<=10000,J52*6/10000,IF(J52<=40000,6+(J52-10000)*12/10000,IF(J52<=100000,54+(J52-50000)*24/10000))) -> 0 | V52: =G52*12*5/1000 -> 0
U53: 0 | V53: 0
U54: 0 | V54: 0
A55: رقم مسلسل | B55: اسم الموظف او المستخدم | E55: وظيفته | F55: نوع العهده | G55: المرتب | H55: القيمه | J55: قيمه العهده المشموله | L55: قيمه رسم الضمان | U55: شرائح ارباب العهد | V55: معادله الاساسى
H56: التقديريه للعهده | J56: بالضمان حد اقصى
J57: مائه الف جنيه | L57: المتحصل من | M57: المتحصل من | N57: ما تتحمله الحكومه | O57: الجمله
G58: الاساسى | H58: نقود او اوراق دمغه | I58: ادوات او مهمات | J58: نقود او اوراق | K58: ادوات
J59: دمغه 100 % | K59: او مهمات 100% | L59: الموظف | M59: الموظف
A60: 192 | E60: باحث | F60: كمبيوتر | G60: 249 | H60: 3000 | J60: =IF(H60>=100000,100000,IF(H60<100000,H60)) -> 3000 | L60: =IF(M60<1,CEILING(M60,1),IF(M60>1,M60)) -> 1.8 | M60: =IF((U60-V60<=0),U60,IF((U60-V60>=0),V60)) -> 1.8 | N60: =U60-M60 -> 0 | O60: =SUM(L60+N60) -> 1.8 | U60: =IF(J60<=10000,J60*6/10000,IF(J60<=40000,6+(J60-10000)*12/10000,IF(J60<=100000,54+(J60-50000)*24/10000))) -> 1.8 | V60: =G60*12*5/1000 -> 14.94
A61: 193 | E61: رئيس قسم | F61: كمبيوتر + طابعه | G61: 524.72 | H61: 2500 | J61: =IF(H61>=100000,100000,IF(H61<100000,H61)) -> 2500 | L61: =IF(M61<1,CEILING(M61,1),IF(M61>1,M61)) -> 1.5 | M61: =IF((U61-V61<=0),U61,IF((U61-V61>=0),V61)) -> 1.5 | N61: =U61-M61 -> 0 | O61: =SUM(L61+N61) -> 1.5 | U61: =IF(J61<=10000,J61*6/10000,IF(J61<=40000,6+(J61-10000)*12/10000,IF(J61<=100000,54+(J61-50000)*24/10000))) -> 1.5 | V61: =G61*12*5/1000 -> 31.4832
A62: 194 | E62: كبير | F62: 2 كمبيوتر + 2 طابعه | G62: 530.37 | H62: 8000 | J62: 8000 | L62: 4.8 | M62: 4.8 | N62: 0 | O62: 4.8 | U62: 4.8 | V62: 31.8222
A63: 195 | E63: باحث | F63: 2 كمبيوتر+ 3 طابعه+ مكنه تصوير+لاب توب | G63: 533.74 | H63: 27000 | J63: 27000 | L63: 26.4 | M63: 26.4 | N63: 0 | O63: 26.4 | U63: 26.4 | V63: 32.0244
A64: 196 | E64: باحث | F64: طابعه + كمبيوتر | G64: 304.22 | H64: 3000 | J64: 3000 | L64: 1.8 | M64: 1.8 | N64: 0 | O64: 1.8 | U64: 1.8 | V64: 18.2532
A65: 197 | E65: رئيس قسم | F65: كمبيوتر + طابعه+لاب توب | G65: 356.96 | H65: 19000 | J65: 19000 | L65: 16.8 | M65: 16.8 | N65: 0 | O65: 16.8 | U65: 16.8 | V65: 21.4176
A66: 198 | E66: رئيس قسم | F66: كمبيوتر + طابعه | G66: 258 | H66: 2500 | J66: 2500 | L66: 1.5 | M66: 1.5 | N66: 0 | O66: 1.5 | U66: 1.5 | V66: 15.48
A67: 199 | E67: مدير اداره | F67: 2 كمبيوتر + طابعه | G67: 356.96 | H67: 5000 | J67: 5000 | L67: 3 | M67: 3 | N67: 0 | O67: 3 | U67: 3 | V67: 21.4176
A68: 200 | E68: رئيس قسم | F68: كمبيوتر | G68: 543.61 | H68: 3000 | J68: 3000 | L68: 1.8 | M68: 1.8 | N68: 0 | O68: 1.8 | U68: 1.8 | V68: 32.6166
A69: 201 | E69: مكتبى | F69: كمبيوتر + طابعه | G69: 412.41 | H69: 3000 | J69: 3000 | L69: 1.8 | M69: 1.8 | N69: 0 | O69: 1.8 | U69: 1.8 | V69: 24.7446
A70: 202 | E70: رئيس قسم | F70: سويتش تليفون +2 فاكس | G70: 366.46 | H70: 22000 | J70: 22000 | L70: 20.4 | M70: 20.4 | N70: 0 | O70: 20.4 | U70: 20.4 | V70: 21.9876
A71: 203 | E71: باحث | F71: 2 كمبيوتر +طابعه | G71: 246 | H71: 12000 | J71: 12000 | L71: 8.4 | M71: 8.4 | N71: 0 | O71: 8.4 | U71: 8.4 | V71: 14.76
A72: 204 | E72: سائق | F72: سياره | G72: 297.12 | H72: 325000 | J72: 100000 | L72: 17.8272 | M72: 17.8272 | N72: 156.1728 | O72: 174 | U72: 174 | V72: 17.8272
A73: 205 | E73: باحث | F73: 2سياره | G73: 356.96 | H73: 370000 | J73: 100000 | L73: 21.4176 | M73: 21.4176 | N73: 152.5824 | O73: 174 | U73: 174 | V73: 21.4176
A74: 206 | E74: باحث | F74: كمبيوتر | G74: 382.76 | H74: 3000 | J74: 3000 | L74: 1.8 | M74: 1.8 | N74: 0 | O74: 1.8 | U74: 1.8 | V74: 22.9656
A75: 207 | E75: رئيس قسم | F75: كمبيوتر + طابعه | G75: 344.96 | H75: 5000 | J75: 5000 | L75: 3 | M75: 3 | N75: 0 | O75: 3 | U75: 3 | V75: 20.6976
B76: الاجمالى | J76: =ROUNDDOWN(SUM(J60:K75),2) -> 318000 | L76: =SUM(L60:L75) -> 134.0448 | M76: =SUM(M60:M75) -> 134.0448 | N76: 308.7552 | O76: 442.8 | U76: FALSE | V76: 0
M77: مديراداره الموارد البشريه | U77: 0 | V77: 0
U78: 0 | V78: 0
U79: 0 | V79: 0
U80: 0 | V80: 0
H81: اقرار | U81: 0 | V81: 0
A82: جمله رسوم الضمان الوارده فى هذا البيان وتبلغ | H82: =O76 -> 442.8 | I82: جنيها | J82: =kh_TextNum(H82,,"جنيه",,"قرشا") -> فقط أربعمائة واثنان وأربعون جنيهاً و (80) قرشا | U82: FALSE | V82: 0
A83: سددت لصندوق التامين الحكومى لضمانات ارباب العهد عن المده من يوليو2022 الى يونيه 2023 | U83: 0 | V83: 0
U84: 0 | V84: 0
A85: تحريرا فى : سنه 2022 | U85: 0 | V85: 0
K86: مدير الحسابات | U86: 0 | V86: 0
U87: 0 | V87: 0
N88: يعتمد | U88: 0 | V88: 0
N89: مدير المديريه | U89: 0 | V89: 0
U90: 0 | V90: 0
U91: 0 | V91: 0
U92: 0 | V92: 0
A95: رقم مسلسل | B95: اسم الموظف او المستخدم | E95: وظيفته | F95: نوع العهده | G95: المرتب | H95: القيمه | J95: قيمه العهده المشموله | L95: قيمه رسم الضمان | U95: شرائح ارباب العهد | V95: معادله الاساسى
H96: التقديريه للعهده | J96: بالضمان حد اقصى
J97: مائه الف جنيه | L97: المتحصل من | M97: المتحصل من | N97: ما تتحمله الحكومه | O97: الجمله
G98: الاساسى | H98: نقود او اوراق دمغه | I98: ادوات او مهمات | J98: نقود او اوراق | K98: ادوات
J99: دمغه 100 % | K99: او مهمات 100% | L99: الموظف | M99: الموظف
A100: 208 | E100: سائق | F100: 2 سياره | G100: 297.32 | H100: 160000 | J100: =IF(H100>=100000,100000,IF(H100<100000,H100)) -> 100000 | L100: =IF(M100<1,CEILING(M100,1),IF(M100>1,M100)) -> 17.8392 | M100: =IF((U100-V100<=0),U100,IF((U100-V100>=0),V100)) -> 17.8392 | N100: =U100-M100 -> 156.1608 | O100: =SUM(L100+N100) -> 174 | U100: =IF(J100<=10000,J100*6/10000,IF(J100<=40000,6+(J100-10000)*12/10000,IF(J100<=100000,54+(J100-50000)*24/10000))) -> 174 | V100: =G100*12*5/1000 -> 17.8392
A101: 209 | E101: مكتبى | F101: كمبيوتر + طابعه | G101: 414.81 | H101: 5000 | J101: =IF(H101>=100000,100000,IF(H101<100000,H101)) -> 5000 | L101: =IF(M101<1,CEILING(M101,1),IF(M101>1,M101)) -> 3 | M101: =IF((U101-V101<=0),U101,IF((U101-V101>=0),V101)) -> 3 | N101: =U101-M101 -> 0 | O101: =SUM(L101+N101) -> 3 | U101: =IF(J101<=10000,J101*6/10000,IF(J101<=40000,6+(J101-10000)*12/10000,IF(J101<=100000,54+(J101-50000)*24/10000))) -> 3 | V101: =G101*12*5/1000 -> 24.8886
A102: 210 | E102: خدمات معاونه | F102: اثاث | G102: 433.06 | H102: 330000 | J102: =IF(H102>=100000,100000,IF(H102<100000,H102)) -> 100000 | L102: =IF(M102<1,CEILING(M102,1),IF(M102>1,M102)) -> 25.9836 | M102: =IF((U102-V102<=0),U102,IF((U102-V102>=0),V102)) -> 25.9836 | N102: =U102-M102 -> 148.0164 | O102: =SUM(L102+N102) -> 174 | U102: =IF(J102<=10000,J102*6/10000,IF(J102<=40000,6+(J102-10000)*12/10000,IF(J102<=100000,54+(J102-50000)*24/10000))) -> 174 | V102: =G102*12*5/1000 -> 25.9836
A103: 211 | E103: خدمات معاونه | F103: اثاث | G103: 441.79 | H103: 350000 | J103: 100000 | L103: 26.5074 | M103: 26.5074 | N103: 147.4926 | O103: 174 | U103: 174 | V103: 26.5074
A104: 212 | E104: سويتش | F104: سنترال المديريه | G104: 342.54 | H104: 2000 | J104: 2000 | L104: 1.2 | M104: 1.2 | N104: 0 | O104: 1.2 | U104: 1.2 | V104: 20.5524
A105: 213 | E105: باحث | F105: كمبيوتر + طابعه | G105: 249 | H105: 6000 | J105: 6000 | L105: 3.6 | M105: 3.6 | N105: 0 | O105: 3.6 | U105: 3.6 | V105: 14.94
A106: 214 | E106: باحث | F106: لاب توب | G106: 246 | H106: 15000 | J106: 15000 | L106: 12 | M106: 12 | N106: 0 | O106: 12 | U106: 12 | V106: 14.76
A107: 215 | E107: حرفى | F107: مسئول الجراج | G107: 331.49 | H107: 80000 | J107: 80000 | L107: 19.8894 | M107: 19.8894 | N107: 106.1106 | O107: 126 | U107: 126 | V107: 19.8894
A108: 216 | E108: باحث | F108: لاب توب | G108: 249 | H108: 10000 | J108: =IF(H108>=100000,100000,IF(H108<100000,H108)) -> 10000 | L108: =IF(M108<1,CEILING(M108,1),IF(M108>1,M108)) -> 6 | M108: =IF((U108-V108<=0),U108,IF((U108-V108>=0),V108)) -> 6 | N108: =U108-M108 -> 0 | O108: =SUM(L108+N108) -> 6 | U108: =IF(J108<=10000,J108*6/10000,IF(J108<=40000,6+(J108-10000)*12/10000,IF(J108<=100000,54+(J108-50000)*24/10000))) -> 6 | V108: =G108*12*5/1000 -> 14.94
A109: 217 | E109: كاتب اول | F109: اثاث + ختم الادره | G109: 431.6 | H109: 6000 | J109: 6000 | L109: 3.6 | M109: 3.6 | N109: 0 | O109: 3.6 | U109: 3.6 | V109: 25.896
A110: 218 | E110: كاتب اول | F110: اثاث + كمبيوتر | G110: 513.1 | H110: 2000 | J110: 2000 | L110: 1.2 | M110: 1.2 | N110: 0 | O110: 1.2 | U110: 1.2 | V110: 30.786
A111: 219 | E111: كاتب اول | F111: اثاث + كمبيوتر | G111: 430 | H111: 2000 | J111: 2000 | L111: 1.2 | M111: 1.2 | N111: 0 | O111: 1.2 | U111: 1.2 | V111: 25.8
A112: 220 | E112: كاتب اول | F112: اثاث + كمبيوتر | G112: 431.6 | H112: 2000 | J112: 2000 | L112: 1.2 | M112: 1.2 | N112: 0 | O112: 1.2 | U112: 1.2 | V112: 25.896
A113: 221 | E113: سائق | F113: سياره | G113: 262.32 | H113: 90000 | J113: 90000 | L113: 15.7392 | M113: 15.7392 | N113: 134.2608 | O113: 150 | U113: 150 | V113: 15.7392
A114: 222 | E114: كاتب اول | F114: اثاث | G114: 408.57 | H114: 200 | J114: 200 | L114: 1 | M114: 0.12 | N114: 0 | O114: 1 | U114: 0.12 | V114: 24.5142
A115: 223 | E115: فنى اول | F115: اثاث | G115: 415.21 | H115: 200 | J115: 200 | L115: 1 | M115: 0.12 | N115: 0 | O115: 1 | U115: 0.12 | V115: 24.9126
A116: 224 | E116: خدمات معاونه | F116: اثاث | G116: 198.75 | H116: 200 | J116: 200 | L116: 1 | M116: 0.12 | N116: 0 | O116: 1 | U116: 0.12 | V116: 11.925
A117: 225 | E117: رئيس مكتب | F117: اثاث | G117: 246 | H117: 200 | J117: 200 | L117: 1 | M117: 0.12 | N117: 0 | O117: 1 | U117: 0.12 | V117: 14.76
B118: الاجمالى | J118: =ROUNDDOWN(SUM(J100:K117),2) -> 520800 | L118: =SUM(L100:L117) -> 142.9588 | M118: =SUM(M100:M117) -> 139.4388 | N118: 692.0412 | O118: 835 | U118: FALSE | V118: 0
M119: مديراداره الموارد البشريه | U119: 0 | V119: 0
U120: 0 | V120: 0
U121: 0 | V121: 0
U122: 0 | V122: 0
H123: اقرار | U123: 0 | V123: 0
A124: جمله رسوم الضمان الوارده فى هذا البيان وتبلغ | H124: =O118 -> 835 | I124: جنيها | J124: =kh_TextNum(H124,,"جنيه",,"قرشا") -> فقط ثمانمائة وخمسة وثلاثون جنيه | U124: FALSE | V124: 0
A125: سددت لصندوق التامين الحكومى لضمانات ارباب العهد عن المده من يوليو2022 الى يونيه 2023 | U125: 0 | V125: 0
U126: 0 | V126: 0
A127: تحريرا فى : سنه 2022 | U127: 0 | V127: 0
K128: مدير الحسابات | U128: 0 | V128: 0
U129: 0 | V129: 0
N130: يعتمد | U130: 0 | V130: 0
N131: مدير المديريه | U131: 0 | V131: 0
U132: 0 | V132: 0
A133: رقم مسلسل | B133: اسم الموظف او المستخدم | E133: وظيفته | F133: نوع العهده | G133: المرتب | H133: القيمه | J133: قيمه العهده المشموله | L133: قيمه رسم الضمان | U133: شرائح ارباب العهد | V133: معادله الاساسى
H134: التقديريه للعهده | J134: بالضمان حد اقصى
J135: مائه الف جنيه | L135: المتحصل من | M135: المتحصل من | N135: ما تتحمله الحكومه | O135: الجمله
G136: الاساسى | H136: نقود او اوراق دمغه | I136: ادوات او مهمات | J136: نقود او اوراق | K136: ادوات
J137: دمغه 100 % | K137: او مهمات 100% | L137: الموظف | M137: الموظف
A138: 226 | E138: فنى اول | F138: اثاث | G138: 436.74 | H138: 500 | J138: =IF(H138>=100000,100000,IF(H138<100000,H138)) -> 500 | L138: =IF(M138<1,CEILING(M138,1),IF(M138>1,M138)) -> 1 | M138: =IF((U138-V138<=0),U138,IF((U138-V138>=0),V138)) -> 0.3 | N138: =U138-M138 -> 0 | O138: =SUM(L138+N138) -> 1 | U138: =IF(J138<=10000,J138*6/10000,IF(J138<=40000,6+(J138-10000)*12/10000,IF(J138<=100000,54+(J138-50000)*24/10000))) -> 0.3 | V138: =G138*12*5/1000 -> 26.2044
A139: 227 | E139: كاتب اول | F139: اثاث | G139: 461.77 | H139: 200 | J139: =IF(H139>=100000,100000,IF(H139<100000,H139)) -> 200 | L139: =IF(M139<1,CEILING(M139,1),IF(M139>1,M139)) -> 1 | M139: =IF((U139-V139<=0),U139,IF((U139-V139>=0),V139)) -> 0.12 | N139: =U139-M139 -> 0 | O139: =SUM(L139+N139) -> 1 | U139: =IF(J139<=10000,J139*6/10000,IF(J139<=40000,6+(J139-10000)*12/10000,IF(J139<=100000,54+(J139-50000)*24/10000))) -> 0.12 | V139: =G139*12*5/1000 -> 27.7062
A140: 228 | E140: كاتب اول | F140: اثاث | G140: 522.05 | H140: 400 | J140: 400 | L140: 1 | M140: 0.24 | N140: 0 | O140: 1 | U140: 0.24 | V140: 31.323
A141: 229 | E141: فنى اول | F141: اثاث | G141: 590.07 | H141: 200 | J141: 200 | L141: 1 | M141: 0.12 | N141: 0 | O141: 1 | U141: 0.12 | V141: 35.4042
A142: 230 | E142: كاتب اول | F142: اثاث | G142: 548.28 | H142: 900 | J142: 900 | L142: 1 | M142: 0.54 | N142: 0 | O142: 1 | U142: 0.54 | V142: 32.8968
A143: 231 | J143: 0 | L143: 0 | M143: 0 | N143: 0 | O143: 0 | U143: 0 | V143: 0
A144: 232 | J144: 0 | L144: 0 | M144: 0 | N144: 0 | O144: 0 | U144: 0 | V144: 0
A145: 233 | J145: 0 | L145: 0 | M145: 0 | N145: 0 | O145: 0 | U145: 0 | V145: 0
A146: 234 | J146: 0 | L146: 0 | M146: 0 | N146: 0 | O146: 0 | U146: 0 | V146: 0
A147: 235 | J147: 0 | L147: 0 | M147: 0 | N147: 0 | O147: 0 | U147: 0 | V147: 0
A148: 236 | J148: 0 | L148: 0 | M148: 0 | N148: 0 | O148: 0 | U148: 0 | V148: 0
A149: 237 | J149: 0 | L149: 0 | M149: 0 | N149: 0 | O149: 0 | U149: 0 | V149: 0
A150: 238 | J150: 0 | L150: 0 | M150: 0 | N150: 0 | O150: 0 | U150: 0 | V150: 0
A151: 239 | J151: 0 | L151: 0 | M151: 0 | N151: 0 | O151: 0 | U151: 0 | V151: 0
A152: 240 | J152: 0 | L152: 0 | M152: 0 | N152: 0 | O152: 0 | U152: 0 | V152: 0
B153: الاجمالى | J153: =ROUNDDOWN(SUM(J138:K152),2) -> 2200 | L153: =SUM(L138:L152) -> 5 | M153: =SUM(M138:M152) -> 1.32 | N153: =SUM(N138:N152) -> 0 | O153: =SUM(O138:O152) -> 5 | U153: 1.32 | V153: 0
M154: مديراداره الموارد البشريه | U154: 0 | V154: 0
U155: 0 | V155: 0
U156: 0 | V156: 0
U157: 0 | V157: 0
H158: اقرار | U158: 0 | V158: 0
A159: جمله رسوم الضمان الوارده فى هذا البيان وتبلغ | H159: =O153 -> 5 | I159: جنيها | J159: =kh_TextNum(H159,,"جنيه",,"قرشا") -> فقط خمسة جنيه | U159: FALSE | V159: 0
A160: سددت لصندوق التامين الحكومى لضمانات ارباب العهد عن المده من يوليو2022 الى يونيه 2023 | U160: 0 | V160: 0
U161: 0 | V161: 0
A162: تحريرا فى : سنه 2022 | U162: 0 | V162: 0
K163: مدير الحسابات | U163: 0 | V163: 0
U164: 0 | V164: 0
N165: يعتمد | U165: 0 | V165: 0
N166: مدير المديريه | U166: 0 | V166: 0
U167: 0 | V167: 0
U168: 0 | V168: 0
U169: 0 | V169: 0
U170: 0 | V170: 0
U171: 0 | V171: 0
U172: 0 | V172: 0
U173: 0 | V173: 0
U174: 0 | V174: 0
U175: 0 | V175: 0
U176: 0 | V176: 0
U177: 0 | V177: 0
U178: 0 | V178: 0
U179: 0 | V179: 0
U180: 0 | V180: 0
U181: 0 | V181: 0
U182: 0 | V182: 0
U183: 0 | V183: 0
U184: 0 | V184: 0
U185: 0 | V185: 0
U186: 0 | V186: 0
U187: 0 | V187: 0
U188: 0 | V188: 0
U189: 0 | V189: 0
U190: 0 | V190: 0
U191: 0 | V191: 0
U192: 0 | V192: 0
U193: 0 | V193: 0
U194: 0 | V194: 0
U195: 0 | V195: 0
U196: 0 | V196: 0
U197: =IF(J197<=10000,J197*6/10000,IF(J197<=40000,6+(J197-10000)*12/10000,IF(J197<=100000,54+(J197-50000)*24/10000))) -> 0 | V197: =G197*12*5/1000 -> 0
U198: 0 | V198: 0
U199: 0 | V199: 0
U200: 0 | V200: 0
U201: 0 | V201: 0
U202: 0 | V202: 0
U203: 0 | V203: 0
U204: 0 | V204: 0
... 260 more rows

Sheet التفريغ
A1: وزاره :التموين والتجاره الداخليه
A2: مصلحه : مديريه تموين الدقهليه
D3: نموذج رقم (1)
C4: تفريغ كشوف بيان ارباب العهد والرسوم المسدده لحساب صندوق الضمان
C5: لمده سنه من : يوليو 2022 الى يونيه سنه 2023
A7: رقم مسلسل | B7: اسم الموظف او المستخدم | E7: وظيفته | F7: نوع العهده | G7: المرتب | H7: القيمه | J7: قيمه العهده المشموله | L7: قيمه رسم الضمان | U7: شرائح ارباب العهد | V7: معادله الاساسى
H8: التقديريه للعهده | J8: بالضمان حد اقصى
J9: مائه الف جنيه | L9: المتحصل من | M9: المتحصل من | N9: ما تتحمله الحكومه | O9: الجمله
G10: الاساسى | H10: نقود او اوراق دمغه | I10: ادوات او مهمات | J10: نقود او اوراق | K10: ادوات
J11: دمغه 100 % | K11: او مهمات 100% | L11: الموظف | M11: الموظف
A12: 5 | B12: كشف رقم 5 | J12: =ورقة1!J22 -> 421780 | L12: =ورقة1!L22 -> 131.6748 | M12: =ورقة1!M22 -> 126.3648 | N12: =ورقة1!N22 -> 582.7032 | O12: =ورقة1!O22 -> 714.378 | U12: =IF(J12<=10000,J12*6/10000,IF(J12<=40000,6+(J12-10000)*12/10000,IF(J12<=100000,54+(J12-50000)*24/10000))) -> FALSE | V12: =G12*12*5/1000 -> 0
A13: 13 | B13: كشف رقم 13 | J13: =ورقة1!J76 -> 318000 | L13: =ورقة1!L76 -> 134.0448 | M13: =ورقة1!M76 -> 134.0448 | N13: =ورقة1!N76 -> 308.7552 | O13: =ورقة1!O76 -> 442.8 | U13: FALSE | V13: 0
A14: 14 | B14: كشف رقم 14 | J14: =ورقة1!J118 -> 520800 | L14: =ورقة1!L118 -> 142.9588 | M14: =ورقة1!M118 -> 139.4388 | N14: =ورقة1!N118 -> 692.0412 | O14: =ورقة1!O118 -> 835 | U14: FALSE | V14: 0
A15: 15 | B15: كشف رقم 15 | J15: =ورقة1!J153 -> 2200 | L15: =ورقة1!L153 -> 5 | M15: =ورقة1!M153 -> 1.32 | N15: =ورقة1!N153 -> 0 | O15: =ورقة1!O153 -> 5 | U15: 1.32 | V15: 0
U16: 0 | V16: 0
B17: الاجمالى | J17: =ROUNDDOWN(SUM(J12:K16),2) -> 1262780 | L17: =SUM(L12:L16) -> 413.6784 | M17: =SUM(M12:M16) -> 401.1684 | N17: =SUM(N12:N16) -> 1583.4996 | O17: =SUM(O12:O16) -> 1997.178 | U17: FALSE | V17: 0
M18: مديراداره الموارد البشريه | U18: 0 | V18: 0
U19: 0 | V19: 0
U20: 0 | V20: 0
U21: 0 | V21: 0
H22: اقرار | U22: 0 | V22: 0
A23: جمله رسوم الضمان الوارده فى هذا البيان وتبلغ | H23: =O17 -> 1997.178 | I23: جنيها | J23: =kh_TextNum(H23,,"جنيه",,"قرشا") -> فقط ألف وتسعمائة وسبعة وتسعون جنيهاً و (18) قرشا | U23: FALSE | V23: 0
A24: سددت لصندوق التامين الحكومى لضمانات ارباب العهد عن المده من يوليو 2022 الى يونيه 2023 | U24: 0 | V24: 0
U25: 0 | V25: 0
A26: تحريرا فى : سنه 2022 | U26: 0 | V26: 0
K27: مدير الحسابات | U27: 0 | V27: 0
U28: 0 | V28: 0
N29: يعتمد | U29: 0 | V29: 0
N30: مدير المديريه | U30: 0 | V30: 0
U31: 0 | V31: 0
U32: 0 | V32: 0
U33: =IF(J33<=10000,J33*6/10000,IF(J33<=40000,6+(J33-10000)*12/10000,IF(J33<=100000,54+(J33-50000)*24/10000))) -> 0 | V33: =G33*12*5/1000 -> 0
U34: 0 | V34: 0
U35: 0 | V35: 0
U36: 0 | V36: 0
U37: 0 | V37: 0
U38: 0 | V38: 0
U39: 0 | V39: 0
U40: 0 | V40: 0
U41: 0 | V41: 0
U42: 0 | V42: 0
U43: 0 | V43: 0
U44: 0 | V44: 0
U45: 0 | V45: 0
U46: 0 | V46: 0
U47: 0 | V47: 0
U48: 0 | V48: 0
U49: 0 | V49: 0
U50: 0 | V50: 0
U51: 0 | V51: 0
U52: 0 | V52: 0
U53: 0 | V53: 0
U54: 0 | V54: 0
U55: 0 | V55: 0
U56: 0 | V56: 0
U57: 0 | V57: 0
U58: 0 | V58: 0
U59: 0 | V59: 0
U60: 0 | V60: 0
U61: 0 | V61: 0
U62: 0 | V62: 0
U63: 0 | V63: 0
U64: 0 | V64: 0
U65: 0 | V65: 0
U66: 0 | V66: 0
U67: 0 | V67: 0
U68: 0 | V68: 0
U69: 0 | V69: 0
U70: 0 | V70: 0
U71: 0 | V71: 0
U72: 0 | V72: 0
U73: 0 | V73: 0
U74: 0 | V74: 0
U75: 0 | V75: 0
U76: 0 | V76: 0
U77: 0 | V77: 0
U78: 0 | V78: 0
U79: 0 | V79: 0
U80: 0 | V80: 0
U81: 0 | V81: 0
U82: 0 | V82: 0
U83: =IF(J83<=10000,J83*6/10000,IF(J83<=40000,6+(J83-10000)*12/10000,IF(J83<=100000,54+(J83-50000)*24/10000))) -> 0 | V83: =G83*12*5/1000 -> 0
U84: 0 | V84: 0
U85: 0 | V85: 0
U86: 0 | V86: 0
U87: 0 | V87: 0
U88: 0 | V88: 0
U89: 0 | V89: 0
U90: 0 | V90: 0
U91: 0 | V91: 0
U92: 0 | V92: 0
U93: 0 | V93: 0
U94: 0 | V94: 0
U95: 0 | V95: 0
U96: 0 | V96: 0
U97: 0 | V97: 0
U98: 0 | V98: 0
U99: 0 | V99: 0
U100: 0 | V100: 0
U101: 0 | V101: 0
U102: 0 | V102: 0
U103: 0 | V103: 0
U104: 0 | V104: 0
U105: 0 | V105: 0
U106: 0 | V106: 0
U107: 0 | V107: 0
U108: 0 | V108: 0
U109: 0 | V109: 0
U110: 0 | V110: 0
U111: 0 | V111: 0
U112: 0 | V112: 0
U113: 0 | V113: 0
U114: 0 | V114: 0
U115: 0 | V115: 0
U116: 0 | V116: 0
U117: 0 | V117: 0
U118: 0 | V118: 0
U119: 0 | V119: 0
U120: 0 | V120: 0
U121: 0 | V121: 0
U122: 0 | V122: 0
U123: 0 | V123: 0
U124: 0 | V124: 0
U125: 0 | V125: 0
U126: 0 | V126: 0
U127: 0 | V127: 0
U128: 0 | V128: 0
U129: 0 | V129: 0
U130: 0 | V130: 0
U131: 0 | V131: 0
U132: 0 | V132: 0
U133: 0 | V133: 0
U134: 0 | V134: 0
U135: 0 | V135: 0
U136: 0 | V136: 0
U137: 0 | V137: 0
U138: 0 | V138: 0
U139: 0 | V139: 0
U140: 0 | V140: 0
U141: 0 | V141: 0
U142: 0 | V142: 0
U143: 0 | V143: 0
U144: 0 | V144: 0
U145: 0 | V145: 0
U146: 0 | V146: 0
U147: =IF(J147<=10000,J147*6/10000,IF(J147<=40000,6+(J147-10000)*12/10000,IF(J147<=100000,54+(J147-50000)*24/10000))) -> 0 | V147: =G147*12*5/1000 -> 0
U148: 0 | V148: 0
U149: 0 | V149: 0
U150: 0 | V150: 0
U151: 0 | V151: 0
U152: 0 | V152: 0
U153: 0 | V153: 0
U154: 0 | V154: 0
U155: 0 | V155: 0
U156: 0 | V156: 0
U157: 0 | V157: 0
U158: 0 | V158: 0
U159: 0 | V159: 0
U160: 0 | V160: 0
U161: 0 | V161: 0
U162: 0 | V162: 0
U163: 0 | V163: 0
U164: 0 | V164: 0
U165: 0 | V165: 0
U166: 0 | V166: 0
U167: 0 | V167: 0
U168: 0 | V168: 0
U169: 0 | V169: 0
U170: 0 | V170: 0
U171: 0 | V171: 0
U172: 0 | V172: 0
U173: 0 | V173: 0
U174: 0 | V174: 0
U175: 0 | V175: 0
U176: 0 | V176: 0
U177: 0 | V177: 0
U178: 0 | V178: 0
U179: 0 | V179: 0
U180: 0 | V180: 0
U181: 0 | V181: 0
U182: 0 | V182: 0
U183: 0 | V183: 0
U184: 0 | V184: 0
U185: 0 | V185: 0
U186: 0 | V186: 0
U187: 0 | V187: 0
U188: 0 | V188: 0
U189: 0 | V189: 0
U190: 0 | V190: 0
U191: 0 | V191: 0
U192: 0 | V192: 0
U193: 0 | V193: 0
U194: 0 | V194: 0
U195: 0 | V195: 0
U196: 0 | V196: 0
U197: 0 | V197: 0
U198: 0 | V198: 0
U199: 0 | V199: 0
U200: 0 | V200: 0
U201: 0 | V201: 0
... 80 more rows
